[Event "Int SVK-ch Open 2020"]
[Site "Drienica"]
[Date "2020.08.15"]
[Round "7.12"]
[White "Lehocz, Jozsef"]
[Black "Ihnat, Marek"]
[Result "1/2-1/2"]
[ECO "B52"]
[WhiteElo "1959"]
[BlackElo "2065"]
[Annotator "ChessBase"]
[PlyCount "149"]
[EventDate "2020.08.07"]
[EventType "swiss"]
[EventCountry "SVK"]
[TimeControl "40/5400+30:1800+30"]

1. e4 {[%emt 0:00:00]} c5 {[%emt 0:00:00]} 2. Nf3 {[%emt 0:00:00]} d6 {[%emt 0:00:00]} 3. Bb5+ {[%emt 0:00:30]} Bd7 {[%emt 0:00:00]} 4. Bxd7+ {[%emt 0:00:09]} Qxd7 {[%emt 0:00:03]} 5. d4 {[%emt 0:00:55]} cxd4 {[%emt 0:00:07]} 6. Nxd4 {[%emt 0:00:06]} Nf6 {[%emt 0:00:28]} 7. f3 {[%emt 0:02:27]} g6 {[%emt 0:02:05]} 8. c4 {[%emt 0:00:21]} Nc6 {[%emt 0:00:49]} 9. Be3 {[%emt 0:01:04]} Bg7 {[%emt 0:00:21]} 10. Nc3 {[%emt 0:00:58]} O-O {[%emt 0:00:20]} 11. Qd2 {[%emt 0:01:34]} Rac8 {[%emt 0:00:09]} 12. b3 {[%emt 0:00:22]} a6 {[%emt 0:00:57]} 13. Rd1 {[%emt 0:01:16]} Nxd4 {[%emt 0:00:51]} 14. Bxd4 {[%emt 0:00:52]} b5 {[%emt 0:00:06]} 15. cxb5 {[%emt 0:06:42]} axb5 {[%emt 0:00:09]} 16. O-O {[%emt 0:00:49]} b4 {[%emt 0:17:07]} 17. Na4 {[%emt 0:07:30]} Qb5 {[%emt 0:07:43]} 18. Nb6 {[%emt 0:09:44]} Rc6 {[%emt 0:02:45]} 19. Nc4 {[%emt 0:00:59]} Ra8 {[%emt 0:01:59]} 20. Qb2 {[%emt 0:09:49]} Rca6 {[%emt 0:02:49]} 21. Ra1 {[%emt 0:00:14]} Ne8 {[%emt 0:01:08]} 22. Bxg7 {[%emt 0:06:13]} Nxg7 {[%emt 0:00:07]} 23. Rfd1 {[%emt 0:00:38]} Qc5+ {[%emt 0:02:02]} 24. Kh1 {[%emt 0:00:01]} Ne6 {[%emt 0:02:12]} 25. Rd5 {[%emt 0:04:00]} Qa7 {[%emt 0:01:15]} 26. Rd2 {[%emt 0:02:44]} Nc7 {[%emt 0:05:19]} 27. Qc2 {[%emt 0:03:34]} Nb5 {[%emt 0:02:04]} 28. Qd3 {[%emt 0:00:25]} Qc5 {[%emt 0:02:28]} 29. h3 {[%emt 0:02:34]} Qg5 {[%emt 0:01:50]} 30. Ne3 {[%emt 0:19:29]} Qe5 {[%emt 0:05:10]} 31. Rf1 {[%emt 0:05:13]} Rxa2 {[%emt 0:01:08]} 32. Rxa2 {[%emt 0:01:55]} Rxa2 {[%emt 0:01:07]} 33. Nd5 {[%emt 0:00:20]} Qb2 {[%emt 0:12:30]} 34. Rg1 {[%emt 0:01:00]} Nd4 {[%emt 0:01:01]} 35. Nxb4 {[%emt 0:02:55]} Ra3 {[%emt 0:14:03]} 36. Rb1 {[%emt 0:00:58]} Qf2 {[%emt 0:06:33]} 37. Rf1 {[%emt 0:00:42]} Qe2 {[%emt 0:04:32]} 38. Qxe2 {[%emt 0:00:41]} Nxe2 {[%emt 0:00:03]} 39. Rf2 {[%emt 0:00:35]} Nd4 {[%emt 0:02:53]} 40. Nd5 {[%emt 0:02:21]} Kf8 {[%emt 0:01:40]} 41. b4 {[%emt 0:37:16]} Rb3 {[%emt 0:03:36]} 42. Rd2 {[%emt 0:00:00]} Nb5 {[%emt 0:07:13]} 43. Kh2 {[%emt 0:00:00]} h5 {[%emt 0:01:14]} 44. Rc2 {[%emt 0:00:00]} e6 {[%emt 0:01:02]} 45. Rc8+ {[%emt 0:00:00]} Kg7 {[%emt 0:00:03]} 46. Rb8 {[%emt 0:00:00]} exd5 {[%emt 0:05:01]} 47. Rxb5 {[%emt 0:00:00]} dxe4 {[%emt 0:00:37]} 48. fxe4 {[%emt 0:00:00]} Re3 {[%emt 0:00:29]} 49. Rd5 {[%emt 0:00:00]} Rxe4 {[%emt 0:00:05]} 50. b5 {[%emt 0:00:00]} Rb4 {[%emt 0:00:24]} 51. Rxd6 {[%emt 0:00:00]} Rxb5 {[%emt 0:00:02]} 52. h4 {[%emt 0:00:00]} Rf5 {[%emt 0:04:25]} 53. g3 {[%emt 0:00:00]} g5 {[%emt 0:03:16]} 54. Kh3 {[%emt 0:00:00]} g4+ {[%emt 0:02:31]} 55. Kg2 {[%emt 0:00:00]} Re5 {[%emt 0:01:20]} 56. Kf2 {[%emt 0:00:00]} Ra5 {[%emt 0:00:17]} 57. Rd2 {[%emt 0:00:00]} Ra3 {[%emt 0:02:16]} 58. Rb2 {[%emt 0:00:00]} Ra8 {[%emt 0:01:14]} 59. Rb3 {[%emt 0:00:00]} Kg6 {[%emt 0:01:02]} 60. Ke3 {[%emt 0:00:00]} Ra6 {[%emt 0:00:30]} 61. Rc3 {[%emt 0:00:00]} Rf6 {[%emt 0:00:19]} 62. Ke4 {[%emt 0:00:38]} Rf1 {[%emt 0:02:06]} 63. Ra3 {[%emt 0:00:34]} Re1+ {[%emt 0:02:52]} 64. Kf4 {[%emt 0:00:32]} Rf1+ {[%emt 0:00:35]} 65. Ke4 {[%emt 0:00:01]} f5+ {[%emt 0:00:26]} 66. Ke5 {[%emt 0:00:29]} Rf3 {[%emt 0:00:55]} 67. Ra6+ {[%emt 0:00:07]} Kf7 {[%emt 0:00:20]} 68. Ra7+ {[%emt 0:00:05]} Ke8 {[%emt 0:00:15]} 69. Ke6 {[%emt 0:07:27]} Kd8 {[%emt 0:00:12]} 70. Rd7+ {[%emt 0:00:36]} Kc8 {[%emt 0:01:12]} 71. Rh7 {[%emt 0:00:50]} f4 {[%emt 0:01:06]} 72. gxf4 {[%emt 0:00:03]} Rxf4 {[%emt 0:00:32]} 73. Rxh5 {[%emt 0:00:09]} g3 {[%emt 0:00:14]} 74. Rg5 {[%emt 0:00:03]} Rxh4 {[%emt 0:00:12]} 75. Rxg3 {[%emt 0:00:02]} 1/2-1/2

[Event "Int SVK-ch Open 2020"]
[Site "Drienica"]
[Date "2020.08.13"]
[Round "7.12"]
[White "Kapolkova, Greta"]
[Black "Sosovickova, Jana"]
[Result "0-1"]
[ECO "C49"]
[WhiteElo "1510"]
[BlackElo "1829"]
[Annotator "NA"]
[PlyCount "116"]
[EventDate "2020.08.07"]
[EventType "swiss"]
[EventCountry "SVK"]
[SourceTitle "playchess.com"]
[Source "ChessBase"]
[SourceQuality "1"]
[TimeControl "40/5400+30:1800+30"]

{[%evp 10,111,12,8,32767,32767,32767,10,32767,32767,32767,32767,32767,32767,-146,32767,32767,32767,-118,32767,32767,-181,-124,-370,-387,-406,-406,32767,32767,32767,32767,-280,32767,-263,-266,32767,-279,-268,-304,-406,-304,32767,-279,-285,-245,-261,0,-271,-268,-346,-316,-283,-315,-307,-259,-257,-257,32767,32767,32767,32767,-451,32767,32767,32767,32767,-329,32767,-499,32767,32767,32767,32767,-331,-443,32767,-459,-517,-550,-482,-608,-488,-761,-700,-1448,-1342,-1425,32767,-2386,-1355,-5806,-1648,-9698,-1887,-29963,-5173,-12831,-5106,32767,32767,-29981,-29979,-29982,-29985]} 1. e4 {[%emt 0:00:00]} e5 {[%emt 0:00:00]} 2. Nf3 {[%emt 0:00:00]} Nc6 {[%emt 0:00:02]} 3. Nc3 {[%emt 0:00:04]} Nf6 {[%emt 0:01:14]} 4. Bb5 {[%emt 0:00:38]} Bb4 {[%emt 0:00:58]} 5. O-O {[%emt 0:01:06]} O-O {[%emt 0:06:42]} 6. d3 {[%emt 0:02:25]} d6 {[%emt 0:05:09]} 7. Bg5 {[%emt 0:01:11] 7.Ne2 is more advanced technology.} Be6 {[%emt 0:02:11]} 8. a3 {[%emt 0:04:37] C49: Four Knights: 4 Bb5 Bb4.} (8. Nd5 $16 Bxd5 9. exd5) 8... Ba5 {[%emt 0:02:59]} 9. b4 {[%emt 0:02:28]} Bb6 {[%emt 0:01:23] [#]} 10. Re1 $146 {[%emt 0:00:56]} ({Predecessor:} 10. Bxc6 bxc6 11. d4 Ng4 12. Bxd8 Rfxd8 13. d5 Nxf2 14. Rxf2 Bxf2+ 15. Kxf2 Bg4 16. h3 {1-0 (24) Hess,M-Waldmann,S Germany 2006}) 10... Nd4 {[%emt 0:03:29]} 11. Rb1 {[%emt 0:09:32]} Bg4 {[%emt 0:11:29]} 12. Bc4 {[%emt 0:10:50]} Bxf3 {[%emt 0:08:12]} 13. gxf3 {[%emt 0:00:45]} Ne6 {[%emt 0:09:13]} 14. Be3 {[%emt 0:03:18]} Nh5 {[%emt 0:03:20]} 15. Ne2 {[%emt 0:03:39]} Qh4 {[%emt 0:09:08]} ({Don't do} 15... Bxe3 16. fxe3 Qg5+ {[%mdl 64] Double Attack} 17. Kf2 $15) 16. Bxe6 $4 {[%emt 0:06:14]} (16. Kh1 $17 {was worth a try.}) 16... fxe6 {[%emt 0:00:41]} 17. Ng3 {[%emt 0:00:17]} Nf4 {[%emt 0:05:01]} 18. Kh1 {[%emt 0:03:46]} Rf6 {[%emt 0:04:48]} 19. Rg1 {[%emt 0:04:04]} Rh6 {[%emt 0:06:03]} 20. Nf1 {[%emt 0:02:43]} Bxe3 {[%emt 0:05:33]} 21. fxe3 {[%emt 0:01:43]} Nh3 {[%emt 0:00:16]} 22. Qe2 {[%emt 0:05:25]} Nxg1 {[%emt 0:01:36]} ({But not} 22... Nf2+ 23. Kg2 $19) 23. Kxg1 {[%emt 0:00:15]} Rf8 {[%emt 0:00:57]} 24. Ng3 {[%emt 0:00:20]} Rhf6 {[%emt 0:03:47]} 25. Rf1 {[%emt 0:00:26]} Qg5 {[%emt 0:01:21]} 26. Kh1 {[%emt 0:01:45]} Rg6 {[%emt 0:01:55]} 27. Qf2 {[%emt 0:01:09]} Rgf6 $2 {[%emt 0:02:01]} ({Better is} 27... Qh6 $19 28. c4 Qh3) 28. Qe2 {[%emt 0:00:21]} h5 {[%emt 0:01:14]} 29. Rf2 {[%emt 0:01:35]} h4 {[%emt 0:00:14]} 30. Nf1 {[%emt 0:00:17]} Rg6 {[%emt 0:01:54]} 31. Rg2 {[%emt 0:00:16]} Qxg2+ {[%emt 0:01:01]} 32. Qxg2 {[%emt 0:00:13]} Rxg2 {[%emt 0:00:02]} 33. Kxg2 {[%emt 0:00:20]} a5 {[%emt 0:00:32]} 34. b5 {[%emt 0:00:40]} c6 {[%emt 0:00:39]} 35. bxc6 {[%emt 0:09:15]} bxc6 {[%emt 0:00:43]} 36. Nd2 {[%emt 0:00:30]} d5 {[%emt 0:00:50]} 37. Nb3 {[%emt 0:00:49]} Rb8 {[%emt 0:00:54]} 38. Nxa5 {[%emt 0:00:36]} Rb2 {[%emt 0:00:09]} 39. Kh3 {[%emt 0:00:43]} Rxc2 {[%emt 0:00:06]} 40. Kxh4 {[%emt 0:00:44]} Rxh2+ {[%emt 0:00:04]} 41. Kg3 {[%emt 0:30:35]} Rc2 {[%emt 0:31:11]} 42. exd5 {[%emt 0:01:11]} exd5 {[%emt 0:00:54]} 43. d4 {[%emt 0:00:18]} exd4 {[%emt 0:00:53]} 44. exd4 {[%emt 0:00:19]} Kf7 {[%emt 0:00:00]} 45. Kf4 {[%emt 0:00:00]} Kf6 {[%emt 0:00:00]} 46. a4 {[%emt 0:00:00]} c5 {[%emt 0:00:00]} 47. Nc6 {[%emt 0:00:00]} cxd4 {[%emt 0:00:00]} (47... g5+ $142 48. Ke3 cxd4+ 49. Nxd4 Rc3+ 50. Kd2 Ra3) 48. Nb4 {[%emt 0:00:00]} Rc5 {[%emt 0:00:00]} 49. Nd3 {[%emt 0:00:00]} Rc4 {[%emt 0:00:00]} 50. a5 {[%emt 0:00:00]} Ra4 {[%emt 0:00:00]} 51. a6 {[%emt 0:00:00]} Rxa6 {[%emt 0:00:00]} 52. Nb4 {[%emt 0:00:00]} Ra5 {[%emt 0:00:00]} (52... g5+ $142 53. Kg3 Ra4 54. Nd3 Ra3 55. Nb4 d3 56. Kf2 Ke5 57. Nc6+ Kf4 58. Nb4 d2 59. Ke2 Rxf3 60. Nxd5+ Ke4 61. Nb4 g4 62. Na6 {[#]} d1=Q+ $1 {[%mdl 576] Promotion} 63. Kxd1 g3 64. Kc2 g2 65. Nc5+ Kd5 66. Nb3 g1=Q 67. Nd2 Qc5+ 68. Kb1 Rf2 69. Kb2 Rxd2+ 70. Kb3 Qc4+ 71. Ka3 Ra2#) 53. Kg3 {[%emt 0:00:00]} Kf5 {[%emt 0:00:00]} 54. Kf2 {[%emt 0:00:00]} Rb5 {[%emt 0:00:00]} 55. Nd3 {[%emt 0:00:00]} Rb3 {[%emt 0:00:00]} 56. Ke2 {[%emt 0:00:00]} Rxd3 {[%emt 0:00:00]} 57. Kxd3 {[%emt 0:00:00]} Kf4 {[%emt 0:00:00]} 58. Kxd4 {[%emt 0:00:00]} Kxf3 {[%emt 0:00:00]} 0-1

[Event "Int SVK-ch Open 2020"]
[Site "Drienica"]
[Date "2020.08.15"]
[Round "7.13"]
[White "Panko, Radoslav"]
[Black "Bednar, Jan"]
[Result "1-0"]
[ECO "B11"]
[WhiteElo "2025"]
[BlackElo "2018"]
[Annotator "ChessBase"]
[PlyCount "71"]
[EventDate "2020.08.07"]
[EventType "swiss"]
[EventCountry "SVK"]
[TimeControl "40/5400+30:1800+30"]

1. e4 {[%emt 0:00:00]} c6 {[%emt 0:00:00]} 2. Nc3 {[%emt 0:00:00]} d5 {[%emt 0:00:06]} 3. Nf3 {[%emt 0:00:00]} Bg4 {[%emt 0:00:11]} 4. h3 {[%emt 0:00:04]} Bxf3 {[%emt 0:00:05]} 5. Qxf3 {[%emt 0:00:03]} e6 {[%emt 0:00:25]} 6. d4 {[%emt 0:00:10]} Nd7 {[%emt 0:01:12]} 7. Bf4 {[%emt 0:01:40]} dxe4 {[%emt 0:08:50]} 8. Nxe4 {[%emt 0:00:29]} Ndf6 {[%emt 0:00:27]} 9. O-O-O {[%emt 0:04:19]} Nxe4 {[%emt 0:00:20]} 10. Qxe4 {[%emt 0:00:02]} Qd5 {[%emt 0:01:30]} 11. Qxd5 {[%emt 0:00:44]} exd5 {[%emt 0:03:34]} 12. Bd3 {[%emt 0:00:48]} g6 {[%emt 0:05:40]} 13. g4 {[%emt 0:04:24]} Bh6 {[%emt 0:03:18]} 14. g5 {[%emt 0:01:16]} Bg7 {[%emt 0:00:06]} 15. c3 {[%emt 0:00:55]} Ne7 {[%emt 0:02:45]} 16. Rde1 {[%emt 0:01:33]} Kd7 {[%emt 0:01:27]} 17. h4 {[%emt 0:01:59]} h5 {[%emt 0:07:31]} 18. Re3 {[%emt 0:04:30]} Rae8 {[%emt 0:05:01]} 19. Rhe1 {[%emt 0:11:04]} Kd8 {[%emt 0:14:03]} 20. Bg3 {[%emt 0:14:59]} Nc8 {[%emt 0:17:15]} 21. Bf1 {[%emt 0:01:12]} Rxe3 {[%emt 0:00:31]} 22. Rxe3 {[%emt 0:00:32]} Rf8 {[%emt 0:10:28]} 23. Bh3 {[%emt 0:01:21]} f5 {[%emt 0:02:39]} 24. Re6 {[%emt 0:09:53]} f4 {[%emt 0:02:58]} 25. Bh2 {[%emt 0:00:17]} Ne7 {[%emt 0:00:24]} 26. Kd1 {[%emt 0:03:37]} b6 {[%emt 0:06:40]} 27. Rd6+ {[%emt 0:01:42]} Ke8 {[%emt 0:00:16]} 28. Bd7+ {[%emt 0:00:11]} Kf7 {[%emt 0:01:03]} 29. Bxc6 {[%emt 0:00:21]} Rc8 {[%emt 0:02:24]} 30. Bd7 {[%emt 0:00:42]} Rc4 {[%emt 0:00:41]} 31. Be6+ {[%emt 0:00:14]} Ke8 {[%emt 0:00:24]} 32. Bxd5 {[%emt 0:00:35]} Ra4 {[%emt 0:01:18]} 33. Bb3 {[%emt 0:00:28]} Ra5 {[%emt 0:00:12]} 34. Re6 {[%emt 0:00:25]} Kd7 {[%emt 0:00:29]} 35. Re4 {[%emt 0:00:09]} Nf5 {[%emt 0:01:01]} 36. Be6+ {[%emt 0:00:36]} 1-0

[Event "Int SVK-ch Open 2020"]
[Site "Drienica"]
[Date "2020.08.13"]
[Round "7.13"]
[White "Janik, Marek Tobias"]
[Black "Holicky, Miroslav"]
[Result "1-0"]
[ECO "A13"]
[WhiteElo "1549"]
[BlackElo "1805"]
[Annotator "NA RC"]
[PlyCount "101"]
[EventDate "2020.08.07"]
[EventType "swiss"]
[EventCountry "SVK"]
[SourceTitle "playchess.com"]
[Source "ChessBase"]
[SourceQuality "1"]
[TimeControl "40/5400+30:1800+30"]

{[%evp 16,99,-2,32767,32767,32767,32767,32767,32767,32767,32767,-30,0,32767,32767,32767,32767,32767,32767,32767,32767,32767,32767,9,41,0,45,9,32767,32767,32767,-42,53,32767,60,6,39,0,17,-36,-29,32767,32767,32767,-16,-111,32767,-46,32767,0,32767,0,72,-57,-45,-57,-45,-93,0,32767,32767,166,162,190,32767,195,185,216,32767,200,222,226,188,235,236,120,269,279,252,292,562,32767,585,620,652,769]} 1. c4 {[%emt 0:00:00]} e6 {[%emt 0:00:08]} 2. Nf3 {[%emt 0:00:24]} d5 {[%emt 0:00:33]} 3. cxd5 {[%emt 0:06:14]} exd5 {[%emt 0:00:13]} 4. g3 {[%emt 0:00:04]} Nf6 {[%emt 0:01:22]} 5. Bg2 {[%emt 0:00:07]} Be7 {[%emt 0:05:25]} 6. O-O {[%emt 0:03:18]} O-O {[%emt 0:00:16]} 7. d4 {[%emt 0:00:31] A14: English Opening: 1...e6 with b3 by White.} a5 {[%emt 0:06:41]} 8. Nc3 {[%emt 0:02:10]} c6 {[%emt 0:00:14]} 9. Qc2 {[%emt 0:05:23]} Nbd7 {[%emt 0:05:01] [#]} 10. Ne5 $146 {[%emt 0:03:27]} ({Predecessor:} 10. b3 Bd6 11. Bb2 Re8 12. Rad1 Nb6 13. Ne5 g6 14. f3 Qe7 {1-0 (39) Thybo,J (2466)-Haug,J (2379) Mamaia 2017}) 10... Re8 {[%emt 0:07:44]} 11. Bd2 {[%emt 0:06:19]} Bd6 {[%emt 0:04:16]} 12. f4 {[%emt 0:00:05]} Nf8 {[%emt 0:03:01]} 13. Rae1 {[%emt 0:07:45]} Bd7 {[%emt 0:03:36]} 14. e4 {[%emt 0:05:56]} dxe4 {[%emt 0:00:25]} 15. Nxe4 {[%emt 0:00:06]} Nxe4 {[%emt 0:01:03]} 16. Bxe4 {[%emt 0:00:07]} Bh3 {[%emt 0:01:20]} 17. Rf2 {[%emt 0:02:40]} Qb6 {[%emt 0:07:38]} 18. Be3 {[%emt 0:08:50]} Qc7 {[%emt 0:03:47]} 19. a3 {[%emt 0:03:04]} Rac8 {[%emt 0:01:42]} 20. Rc1 {[%emt 0:07:40]} Qb8 {[%emt 0:00:41]} 21. Qd3 {[%emt 0:02:06]} Re7 {[%emt 0:05:27]} 22. Nc4 {[%emt 0:09:30]} Rce8 {[%emt 0:01:41]} 23. Bf3 {[%emt 0:01:49]} f6 {[%emt 0:08:22]} (23... Bc7 $11) 24. Re2 {[%emt 0:04:32]} Bc7 $1 {[%emt 0:02:07]} 25. Rce1 {[%emt 0:11:48]} Qc8 {[%emt 0:05:28]} 26. Bh5 {[%emt 0:02:01]} g6 {[%emt 0:00:37]} 27. Bf3 {[%emt 0:00:05]} Bf5 {[%emt 0:00:54]} 28. Qb3 {[%emt 0:00:58]} Kg7 {[%emt 0:00:39]} 29. Qc3 {[%emt 0:00:36] [#]} Qd8 {[%emt 0:02:40]} (29... Bg4 $1 $17 {[%cal Rg4f3]} 30. f5 Qxf5 31. Bh6+ {[%mdl 64] Discovered Attack} Kf7) 30. g4 {[%emt 0:03:36]} (30. Bf2 $11 {keeps the balance.}) 30... Be6 {[%emt 0:04:04]} 31. g5 {[%emt 0:02:44]} Bd5 {[%emt 0:00:20]} 32. gxf6+ {[%emt 0:00:07]} Kxf6 {[%emt 0:00:38]} 33. Ne5 {[%emt 0:00:42]} Kg7 {[%emt 0:02:26] [#]} (33... Bxf3 $11 34. Nxf3 Qd5) 34. Bxd5 {[%emt 0:00:35]} ({Only move:} 34. f5 $1 $16 {[%cal Rf5f6]} gxf5 35. Rg2+ Ng6 36. Bg5) 34... Qxd5 {[%emt 0:00:11]} 35. Rg2 {[%emt 0:00:06]} Nd7 {[%emt 0:04:04]} 36. Bf2 {[%emt 0:01:15]} Bxe5 {[%emt 0:02:56]} (36... Nf6 $17) 37. dxe5 {[%emt 0:00:08]} Re6 {[%emt 0:02:27]} 38. f5 {[%emt 0:01:00]} Rxe5 {[%emt 0:01:03]} 39. Bd4 {[%emt 0:00:12] Pin} Kf7 {[%emt 0:02:12]} 40. fxg6+ {[%emt 0:00:07]} hxg6 {[%emt 0:00:12]} 41. Bxe5 {[%emt 0:31:51]} Rxe5 {[%emt 0:33:15]} 42. Rf1+ {[%emt 0:00:00]} Kg7 {[%emt 0:00:00]} 43. Rd2 {[%emt 0:00:00]} Qc5+ {[%emt 0:00:00]} 44. Kh1 {[%emt 0:00:00]} Nf6 {[%emt 0:00:00]} 45. Qg3 {[%emt 0:00:00]} ({Only move:} 45. Qxc5 $18 Rxc5 46. Rdf2) 45... Qc4 $2 {[%emt 0:00:00] [#]} (45... Rf5 $16 46. Rg1 g5) 46. Rg1 $1 {[%emt 0:00:00]} Qe4+ {[%emt 0:00:00] [#]} 47. Rdg2 $1 {[%emt 0:00:00]} g5 $2 {[%emt 0:00:00]} (47... b5 48. Qxg6+ Qxg6) 48. Qxe5 {[%emt 0:00:00]} Qxe5 {[%emt 0:00:00]} 49. Rxg5+ {[%emt 0:00:00]} Qxg5 {[%emt 0:00:00]} 50. Rxg5+ $18 {[%emt 0:00:00]} Kf7 {[%emt 0:00:00]} 51. Rxa5 {[%emt 0:00:00]} 1-0

[Event "Int SVK-ch Open 2020"]
[Site "Drienica"]
[Date "2020.08.13"]
[Round "7.14"]
[White "Varga, Lukas"]
[Black "Belis, Rudolf"]
[Result "1-0"]
[ECO "C21"]
[WhiteElo "2040"]
[BlackElo "1924"]
[Annotator "ChessBase"]
[PlyCount "73"]
[EventDate "2020.08.07"]
[EventType "swiss"]
[EventCountry "SVK"]
[SourceTitle "playchess.com"]
[Source "ChessBase"]
[SourceQuality "1"]
[TimeControl "40/5400+30:1800+30"]

1. e4 {[%emt 0:00:04]} e5 {[%emt 0:04:21]} 2. d4 {[%emt 0:02:05]} exd4 {[%emt 0:00:05]} 3. c3 {[%emt 0:00:07]} d5 {[%emt 0:00:57]} 4. exd5 {[%emt 0:00:29]} Nf6 {[%emt 0:00:33]} 5. Qxd4 {[%emt 0:00:56]} Qxd5 {[%emt 0:00:10]} 6. Nf3 {[%emt 0:00:26]} Nc6 {[%emt 0:01:14]} 7. Qe3+ {[%emt 0:03:53]} Be7 {[%emt 0:00:45]} 8. Na3 {[%emt 0:01:29]} O-O {[%emt 0:00:35]} 9. Bc4 {[%emt 0:01:32]} Qh5 {[%emt 0:00:38]} 10. Qg5 {[%emt 0:02:40]} Bg4 {[%emt 0:02:40]} 11. Qxh5 {[%emt 0:01:16]} Bxh5 {[%emt 0:01:37]} 12. Nb5 {[%emt 0:00:25]} Rac8 {[%emt 0:01:56]} 13. Bf4 {[%emt 0:04:27]} Ne8 {[%emt 0:15:35]} 14. Bd5 {[%emt 0:00:48]} a6 {[%emt 0:00:49]} 15. Bxc6 {[%emt 0:04:48]} bxc6 {[%emt 0:01:47]} 16. Na7 {[%emt 0:00:21]} Ra8 {[%emt 0:00:13]} 17. Nxc6 {[%emt 0:00:07]} Bd6 {[%emt 0:00:54]} 18. Bg3 {[%emt 0:03:20]} Bxf3 {[%emt 0:00:33]} 19. gxf3 {[%emt 0:00:11]} f5 {[%emt 0:01:39]} 20. Bxd6 {[%emt 0:08:16]} Nxd6 {[%emt 0:00:30]} 21. O-O-O {[%emt 0:00:34]} Rfe8 {[%emt 0:01:15]} 22. Rhe1 {[%emt 0:01:34]} Kf7 {[%emt 0:00:21]} 23. a4 {[%emt 0:02:27]} Kf6 {[%emt 0:01:01]} 24. Rxe8 {[%emt 0:01:09]} Rxe8 {[%emt 0:00:06]} 25. Nb4 {[%emt 0:00:27]} a5 {[%emt 0:01:53]} 26. Nd5+ {[%emt 0:00:45]} Kg5 {[%emt 0:00:12]} 27. Nxc7 {[%emt 0:00:08]} Re2 {[%emt 0:01:23]} 28. Rxd6 {[%emt 0:00:13]} Rxf2 {[%emt 0:00:01]} 29. Ne6+ {[%emt 0:00:18]} Kh4 {[%emt 0:00:07]} 30. Rd4+ {[%emt 0:02:56]} Kh3 {[%emt 0:00:15]} 31. Ng5+ {[%emt 0:00:16]} Kxh2 {[%emt 0:00:26]} 32. Rh4+ {[%emt 0:00:41]} Kg3 {[%emt 0:01:14]} 33. Rxh7 {[%emt 0:00:11]} g6 {[%emt 0:00:11]} 34. Rg7 {[%emt 0:00:41]} Rg2 {[%emt 0:00:18]} 35. Rxg6 {[%emt 0:00:10]} Kf4 {[%emt 0:00:09]} 36. Ne6+ {[%emt 0:00:16]} Kxf3 {[%emt 0:00:07]} 37. Nd4+ {[%emt 0:00:06]} 1-0

[Event "Int SVK-ch Open 2020"]
[Site "Drienica"]
[Date "2020.08.13"]
[Round "7.14"]
[White "Kulich, Filip"]
[Black "Walterova, Ema"]
[Result "1-0"]
[ECO "A46"]
[WhiteElo "1397"]
[BlackElo "1790"]
[Annotator "NA"]
[PlyCount "131"]
[EventDate "2020.08.07"]
[EventType "swiss"]
[EventCountry "SVK"]
[SourceTitle "playchess.com"]
[Source "ChessBase"]
[SourceQuality "1"]
[TimeControl "40/5400+30:1800+30"]

1. d4 {[%emt 0:00:00]} Nf6 {[%emt 0:00:00]} 2. Nf3 {[%emt 0:00:00]} e6 {[%emt 0:00:00]} 3. e3 {[%emt 0:00:01]} Be7 {[%emt 0:00:00]} 4. Bd3 {[%emt 0:00:19]} b6 {[%emt 0:00:14]} 5. b3 {[%emt 0:01:02]} Bb7 {[%emt 0:00:22]} 6. O-O {[%emt 0:00:24]} d5 {[%emt 0:00:20]} 7. Bb2 {[%emt 0:02:00]} Nbd7 {[%emt 0:01:38]} 8. Nbd2 {[%emt 0:03:23]} O-O {[%emt 0:01:41]} 9. Qe2 {[%emt 0:03:06]} a6 {[%emt 0:01:04]} 10. e4 {[%emt 0:02:16]} dxe4 {[%emt 0:07:52]} 11. Nxe4 {[%emt 0:03:09]} Nd5 {[%emt 0:00:25]} 12. Qd2 {[%emt 0:01:41]} c5 {[%emt 0:04:18]} 13. Rad1 {[%emt 0:04:09]} Qc7 {[%emt 0:07:52]} 14. dxc5 {[%emt 0:05:30]} bxc5 {[%emt 0:02:29]} 15. Rfe1 {[%emt 0:02:50]} N7f6 {[%emt 0:03:00]} 16. c4 {[%emt 0:04:34]} Nxe4 {[%emt 0:07:16]} 17. Bxe4 {[%emt 0:01:18]} Nf6 {[%emt 0:00:22]} 18. Be5 {[%emt 0:06:40]} Nxe4 {[%emt 0:09:38]} 19. Rxe4 {[%emt 0:01:42]} Qd8 {[%emt 0:13:32]} 20. Rg4 {[%emt 0:11:33]} f6 {[%emt 0:01:58]} 21. Qd7 {[%emt 0:01:17]} Qxd7 {[%emt 0:07:33]} 22. Rxd7 {[%emt 0:00:19]} Rad8 {[%emt 0:00:03]} 23. Rxd8 {[%emt 0:01:50]} Rxd8 {[%emt 0:00:29]} 24. Bc3 {[%emt 0:00:16]} Rd3 {[%emt 0:04:32]} 25. Ba5 {[%emt 0:02:06]} Bd8 {[%emt 0:06:03]} 26. Ne1 {[%emt 0:11:41]} Rd1 {[%emt 0:06:26]} 27. Bc3 {[%emt 0:00:55]} Bc7 {[%emt 0:04:54]} 28. Kf1 {[%emt 0:03:28]} Rc1 {[%emt 0:04:15]} 29. Bb2 {[%emt 0:02:43]} Rb1 {[%emt 0:00:14]} 30. Bc3 {[%emt 0:00:12]} Kf7 {[%emt 0:00:14]} 31. Ke2 {[%emt 0:00:56]} Rc1 {[%emt 0:02:49]} 32. Bb2 {[%emt 0:03:22]} Rb1 {[%emt 0:00:16]} 33. Bc3 {[%emt 0:00:05]} Be5 {[%emt 0:00:38]} 34. Bxe5 {[%emt 0:01:02]} fxe5 {[%emt 0:00:01]} 35. Nd3 {[%emt 0:00:37]} h5 {[%emt 0:03:15]} 36. Rg3 {[%emt 0:02:52]} e4 {[%emt 0:01:36]} 37. Nxc5 {[%emt 0:00:25]} Rb2+ {[%emt 0:00:36]} 38. Ke3 {[%emt 0:00:01]} Bc6 {[%emt 0:00:26]} 39. a4 {[%emt 0:00:08]} e5 {[%emt 0:00:32]} 40. Nxe4 {[%emt 0:00:39]} Rxb3+ {[%emt 0:00:20]} 41. Kd2 {[%emt 0:31:29]} Bxa4 {[%emt 0:08:13]} 42. Rxb3 {[%emt 0:00:00]} Bxb3 {[%emt 0:00:03]} 43. Kc3 {[%emt 0:00:00]} Ba4 {[%emt 0:00:11]} 44. f3 {[%emt 0:00:00]} a5 {[%emt 0:03:18]} 45. Nd6+ {[%emt 0:00:00]} Ke7 {[%emt 0:00:48]} 46. Nb7 {[%emt 0:00:00]} e4 {[%emt 0:04:20]} 47. fxe4 {[%emt 0:00:00]} Bc6 {[%emt 0:00:43]} 48. Nxa5 {[%emt 0:00:00]} Bxe4 {[%emt 0:00:20]} 49. g3 {[%emt 0:00:00]} Kf6 {[%emt 0:01:57]} 50. Kd4 {[%emt 0:00:00]} Bg2 {[%emt 0:05:03]} 51. c5 {[%emt 0:00:00]} Kg5 {[%emt 0:06:03]} 52. c6 {[%emt 0:00:44]} Bxc6 {[%emt 0:01:08]} 53. Nxc6 {[%emt 0:00:15]} Kg4 {[%emt 0:01:05]} 54. Ne5+ {[%emt 0:02:30]} Kh3 {[%emt 0:00:59]} 55. Nf3 {[%emt 0:00:59]} g5 {[%emt 0:03:22]} 56. Ke3 {[%emt 0:02:02]} g4 {[%emt 0:00:38]} 57. Nh4 {[%emt 0:01:57]} Kxh2 {[%emt 0:00:23]} 58. Kf2 {[%emt 0:00:20]} Kh3 {[%emt 0:00:35]} 59. Nf5 {[%emt 0:00:34]} Kh2 {[%emt 0:00:29]} 60. Ne3 {[%emt 0:01:05]} Kh3 {[%emt 0:00:29]} 61. Ng2 {[%emt 0:01:34]} Kh2 {[%emt 0:00:35]} 62. Nf4 {[%emt 0:01:35]} Kh1 {[%emt 0:00:34]} 63. Nxh5 {[%emt 0:01:32]} Kh2 {[%emt 0:00:08]} 64. Ke3 {[%emt 0:01:41]} Kg2 {[%emt 0:00:22]} 65. Kf4 {[%emt 0:00:06]} Kh3 {[%emt 0:00:09]} 66. Nf6 {[%emt 0:00:08]} 1-0